fUST/lending_fUST_20240815
["ID","MTS","AMOUNT","RATE_DAILY","PERIOD"]
[334950498,1723669844385,-500.0,0.00013698,2]
[334950500,1723669844395,-500.0,0.00013698,2]
[334950502,1723669844404,-500.0,0.00013698,2]
[334950504,1723669844413,-653.64,0.00013698,2]
[334950506,1723669844422,-500.0,0.00013698,2]
[334950508,1723669844431,-568.24,0.00013698,2]
[334950510,1723669844440,-500.0,0.00013698,2]
[334950512,1723669844450,-500.0,0.00013698,2]
[334950513,1723669844465,-500.0,0.00013698,2]
[334950516,1723669844475,-500.0,0.00013698,2]
[334950518,1723669844486,-719.32,0.00013698,2]
[334950520,1723669844496,-500.0,0.00013698,2]
[334950522,1723669844507,-586.32,0.00013698,2]
[334950524,1723669844517,-500.0,0.00013698,2]
[334950526,1723669844527,-500.0,0.00013698,2]
[334950528,1723669844538,-500.0,0.00013698,2]
[334950530,1723669844548,-500.0,0.00013698,2]
[334950532,1723669844559,-500.0,0.00013698,2]
[334950534,1723669844569,-616.17,0.00013698,2]
[334950536,1723669844579,-500.0,0.00013698,2]
[334950538,1723669844589,-500.0,0.00013698,2]
[334950540,1723669844598,-504.7,0.00013698,2]
[334950542,1723669844609,-500.0,0.00013698,2]
[334950544,1723669844619,-498.065692,0.00013698,2]
[334950546,1723669844629,-498.065692,0.00013698,2]
[334950548,1723669844639,-498.065692,0.00013698,2]
[334950550,1723669844651,-246.97786318,0.00013698,2]
[334950552,1723669844661,-498.065692,0.00013698,2]
[334950554,1723669844671,-401.80234,0.00013698,2]
[334950556,1723669844681,-437.78053715,0.00013698,2]
[334950558,1723669844692,-401.80234,0.00013698,2]
[334950560,1723669844702,-500.0,0.00013698,2]
[334950562,1723669844713,-500.0,0.00013698,2]
[334950564,1723669844724,-401.80234,0.00013698,2]
[334950566,1723669844735,-500.0,0.00013698,2]
[334950568,1723669844746,-500.0,0.00013698,2]
[334950571,1723669844755,-401.80234,0.00013698,2]
[334950573,1723669844766,-500.0,0.00013698,2]
[334950575,1723669844775,-500.0,0.00013698,2]
[334950577,1723669844785,-447.11587654,0.00013698,2]
[334950597,1723669845031,-52.88412346,0.00013698,2]
[334950598,1723669845041,-500.0,0.00013698,2]
[334950599,1723669845051,-853.67,0.00013698,2]
[334950600,1723669845060,-538.97,0.00013698,2]
[334950602,1723669845071,-687.007188,0.00013698,2]
[334950604,1723669845081,-687.007188,0.00013698,2]
[334950606,1723669845090,-669.15,0.00013698,2]
[334950608,1723669845100,-500.0,0.00013698,2]
[334950610,1723669845110,-687.007188,0.00013698,2]
[334950612,1723669845121,-687.007188,0.00013698,2]
[334950614,1723669845130,-500.0,0.00013698,2]
[334950616,1723669845140,-500.0,0.00013698,2]
[334950618,1723669845150,-4579.47,0.00013698,2]
[334950619,1723669845160,-386.82712454,0.00013698,2]
[334950704,1723669846438,-246.54287546,0.00013698,2]
[334950705,1723669846448,-500.0,0.00013698,2]
[334950706,1723669846460,-500.0,0.00013698,2]
[334950707,1723669846471,-312.62926575,0.00013698,2]
[334950708,1723669846481,-700.28,0.00013698,2]
[334950709,1723669846500,-710.52,0.00013698,2]
[334950710,1723669846512,-1129.72,0.00013698,2]
[334950712,1723669846523,-500.0,0.00013698,2]
[334950714,1723669846534,-234.65402979,0.00013698,2]
[334950716,1723669846544,-500.0,0.00013698,2]
[334950718,1723669846554,-500.0,0.00013698,2]
[334950720,1723669846564,-500.0,0.00013698,2]
[334950722,1723669846574,-277.84397987,0.00013698,2]
[334950724,1723669846584,-500.0,0.00013698,2]
[334950726,1723669846596,-500.0,0.00013698,2]
[334950728,1723669846607,-985.03,0.00013698,2]
[334950730,1723669846618,-500.0,0.00013698,2]
[334950732,1723669846628,-500.0,0.00013698,2]
[334950734,1723669846638,-1494.98,0.00013698,2]
[334950736,1723669846648,-500.0,0.00013698,2]
[334950738,1723669846658,-500.0,0.00013698,2]
[334950740,1723669846667,-562.42,0.00013698,2]
[334950742,1723669846677,-500.0,0.00013698,2]
[334950744,1723669846687,-502.26218257,0.00013698,2]
[334950746,1723669846697,-500.0,0.00013698,2]
[334950748,1723669846707,-500.0,0.00013698,2]
[334950750,1723669846716,-552.15,0.00013698,2]
[334950752,1723669846726,-174.1435095,0.00013698,2]
[334950754,1723669846736,-500.0,0.00013698,2]
[334950756,1723669846746,-1719.73,0.00013698,2]
[334950758,1723669846757,-1719.73,0.00013698,2]
[334950760,1723669846766,-1719.73,0.00013698,2]
[334950762,1723669846776,-1719.73,0.00013698,2]
[334950764,1723669846786,-1719.73,0.00013698,2]
[334950766,1723669846795,-1362.77,0.00013698,2]
[334950768,1723669846806,-1719.73,0.00013698,2]
[334950770,1723669846815,-1719.73,0.00013698,2]
[334950772,1723669846826,-1719.73,0.00013698,2]
[334950775,1723669846839,-500.0,0.00013698,2]
[334950777,1723669846849,-500.0,0.00013698,2]
[334950779,1723669846859,-500.0,0.00013698,2]
[334950781,1723669846869,-500.0,0.00013698,2]
[334950783,1723669846879,-500.0,0.00013698,2]
[334950785,1723669846889,-543.67,0.00013698,2]
[334950787,1723669846899,-500.0,0.00013698,2]
[334950789,1723669846909,-838.53,0.00013698,2]
[334950791,1723669846921,-500.0,0.00013698,2]
[334950793,1723669846932,-535.93,0.00013698,2]
[334950795,1723669846942,-500.0,0.00013698,2]
[334950797,1723669846954,-898.73,0.00013698,2]
[334950813,1723669846964,-500.0,0.00013698,2]
[334950816,1723669847129,-971.89,0.00013698,2]
[334950818,1723669847138,-1587.86,0.00013698,2]
[334950820,1723669847148,-500.0,0.00013698,2]
[334950822,1723669847158,-500.0,0.00013698,2]
[334950824,1723669847167,-330.43091,0.00013698,2]
[334950826,1723669847177,-330.43091,0.00013698,2]
[334950828,1723669847187,-500.0,0.00013698,2]
[334950830,1723669847196,-500.0,0.00013698,2]
[334950832,1723669847205,-500.0,0.00013698,2]
[334950834,1723669847215,-791.23,0.00013698,2]
[334950836,1723669847224,-500.0,0.00013698,2]
[334950838,1723669847234,-330.43091,0.00013698,2]
[334950841,1723669847244,-330.43091,0.00013698,2]
[334950843,1723669847253,-151.0,0.00013698,2]
[334950845,1723669847263,-500.0,0.00013698,2]
[334950847,1723669847273,-151.0,0.00013698,2]
[334950849,1723669847282,-500.0,0.00013698,2]
[334950851,1723669847295,-500.0,0.00013698,2]
[334950853,1723669847307,-1066.73,0.00013698,2]
[334950855,1723669847316,-502.21283972,0.00013698,2]
[334950857,1723669847326,-151.0,0.00013698,2]
[334950859,1723669847336,-194.563842,0.00013698,2]
[334950861,1723669847346,-500.0,0.00013698,2]
[334950863,1723669847355,-500.0,0.00013698,2]
[334950865,1723669847365,-500.0,0.00013698,2]
[334950867,1723669847374,-730.64,0.00013698,2]
[334950869,1723669847384,-500.0,0.00013698,2]
[334950871,1723669847394,-500.0,0.00013698,2]
[334950873,1723669847403,-152.069158,0.00013698,2]
[334950875,1723669847413,-552.81,0.00013698,2]
[334950877,1723669847423,-500.0,0.00013698,2]
[334950879,1723669847433,-500.0,0.00013698,2]
[334950881,1723669847443,-500.0,0.00013698,2]
[334950883,1723669847452,-500.0,0.00013698,2]
[334950885,1723669847466,-526.41,0.00013698,2]
[334950887,1723669847476,-500.0,0.00013698,2]
[334950889,1723669847485,-500.0,0.00013698,2]
[334950891,1723669847495,-500.0,0.00013698,2]
[334950894,1723669847506,-500.0,0.00013698,2]
[334950896,1723669847515,-500.0,0.00013698,2]
[334950898,1723669847525,-500.0,0.00013698,2]
[334950900,1723669847536,-269.28091569,0.00013698,2]
[334950902,1723669847546,-1066.19,0.00013698,2]
[334950904,1723669847557,-500.0,0.00013698,2]
[334950906,1723669847567,-759.81,0.00013698,2]
[334950908,1723669847576,-1259.42,0.00013698,2]
[334950910,1723669847588,-500.0,0.00013698,2]
[334950912,1723669847599,-500.0,0.00013698,2]
[334950914,1723669847609,-500.0,0.00013698,2]
[334950916,1723669847620,-151.0,0.00013698,2]
[334950918,1723669847632,-151.0,0.00013698,2]
[334950921,1723669847643,-666.04,0.00013698,2]
[334950923,1723669847655,-500.0,0.00013698,2]
[334950925,1723669847665,-606.80540366,0.00013698,2]
[334950927,1723669847676,-871.64,0.00013698,2]
[334950929,1723669847686,-500.0,0.00013698,2]
[334950931,1723669847696,-738.28,0.00013698,2]
[334950933,1723669847705,-500.0,0.00013698,2]
[334950935,1723669847715,-500.0,0.00013698,2]
[334950937,1723669847724,-2174.32,0.00013698,2]
[334950939,1723669847733,-500.0,0.00013698,2]
[334950940,1723669847743,-557.04,0.00013698,2]
[334950941,1723669847752,-500.0,0.00013698,2]
[334950942,1723669847762,-500.0,0.00013698,2]
[334950943,1723669847773,-500.0,0.00013698,2]
[334950944,1723669847783,-604.99,0.00013698,2]
[334950945,1723669847792,-958.69,0.00013698,2]
[334950946,1723669847802,-500.0,0.00013698,2]
[334950947,1723669847811,-500.0,0.00013698,2]
[334950948,1723669847820,-712.15,0.00013698,2]
[334950949,1723669847830,-411.227625,0.00013698,2]
[334950951,1723669847840,-411.227625,0.00013698,2]
[334950953,1723669847850,-690.18,0.00013698,2]
[334950955,1723669847861,-516.4208336,0.00013698,2]
[334950957,1723669847870,-411.227625,0.00013698,2]
[334950959,1723669847880,-500.0,0.00013698,2]
[334950961,1723669847889,-411.227625,0.00013698,2]
[334950963,1723669847899,-992.64,0.00013698,2]
[334950965,1723669847909,-500.0,0.00013698,2]
[334950967,1723669847919,-531.52,0.00013698,2]
[334950969,1723669847928,-500.0,0.00013698,2]
[334950971,1723669847938,-500.0,0.00013698,2]
[334950973,1723669847949,-500.0,0.00013698,2]
[334950975,1723669847959,-500.0,0.00013698,2]
[334950977,1723669847968,-500.0,0.00013698,2]
[334950978,1723669847978,-500.0,0.00013698,2]
[334950980,1723669847987,-610.76,0.00013698,2]
[334950982,1723669847997,-500.0,0.00013698,2]
[334950984,1723669848006,-567.04,0.00013698,2]
[334950986,1723669848016,-500.0,0.00013698,2]
[334950988,1723669848025,-2804.46,0.00013698,2]
[334950990,1723669848035,-500.0,0.00013698,2]
[334950992,1723669848044,-500.0,0.00013698,2]
[334950994,1723669848055,-500.0,0.00013698,2]
[334950996,1723669848064,-500.0,0.00013698,2]
[334950998,1723669848074,-562.4,0.00013698,2]
[334951000,1723669848083,-500.0,0.00013698,2]
[334951002,1723669848093,-500.0,0.00013698,2]
[334951004,1723669848103,-500.0,0.00013698,2]
[334951006,1723669848115,-562.76,0.00013698,2]
[334951009,1723669848125,-500.0,0.00013698,2]
[334951010,1723669848135,-500.0,0.00013698,2]
[334951012,1723669848145,-500.0,0.00013698,2]
[334951014,1723669848154,-515.31255409,0.00013698,2]
[334951016,1723669848164,-500.83942618,0.00013698,2]
[334951018,1723669848174,-500.0,0.00013698,2]
[334951020,1723669848183,-1118.56,0.00013698,2]
[334951023,1723669848194,-1011.69,0.00013698,2]
[334951025,1723669848203,-1381.31,0.00013698,2]
[334951026,1723669848213,-151.0,0.00013698,2]
[334951028,1723669848222,-502.60012438,0.00013698,2]
[334951029,1723669848232,-500.0,0.00013698,2]
[334951030,1723669848241,-500.0,0.00013698,2]
[334951032,1723669848251,-615.46,0.00013698,2]
[334951034,1723669848260,-577.06,0.00013698,2]
[334951036,1723669848271,-501.05,0.00013698,2]
[334951038,1723669848281,-500.0,0.00013698,2]
[334951040,1723669848290,-915.1,0.00013698,2]
[334951042,1723669848302,-500.0,0.00013698,2]
[334951044,1723669848313,-500.0,0.00013698,2]
[334951045,1723669848324,-500.0,0.00013698,2]
[334951047,1723669848335,-1913.45,0.00013698,2]
[334951049,1723669848346,-500.0,0.00013698,2]
[334951051,1723669848357,-385.436671,0.00013698,2]
[334951052,1723669848366,-385.436671,0.00013698,2]
[334951053,1723669848377,-704.34,0.00013698,2]
[334951054,1723669848386,-500.0,0.00013698,2]
[334951055,1723669848396,-608.54,0.00013698,2]
[334951056,1723669848406,-500.0,0.00013698,2]
[334951057,1723669848415,-385.436671,0.00013698,2]
[334951058,1723669848425,-385.436671,0.00013698,2]
[334951059,1723669848434,-500.0,0.00013698,2]
[334951061,1723669848444,-748.94,0.00013698,2]
[334951063,1723669848454,-500.0,0.00013698,2]
[334951065,1723669848466,-500.0,0.00013698,2]
[334951067,1723669848476,-736.97,0.00013698,2]
[334951068,1723669848485,-1191.57,0.00013698,2]
[334951070,1723669848495,-701.46,0.00013698,2]
[334951072,1723669848506,-500.0,0.00013698,2]
[334951074,1723669848516,-500.0,0.00013698,2]
[334951076,1723669848525,-504.01,0.00013698,2]
[334951078,1723669848534,-500.0,0.00013698,2]
[334951080,1723669848545,-500.0,0.00013698,2]
[334951082,1723669848555,-500.0,0.00013698,2]
[334951084,1723669848564,-511.34002103,0.00013698,2]
[334951086,1723669848573,-836.58,0.00013698,2]
[334951088,1723669848582,-1268.22,0.00013698,2]
[334951089,1723669848593,-500.0,0.00013698,2]
[334951091,1723669848602,-500.0,0.00013698,2]
[334951093,1723669848612,-725.04,0.00013698,2]
[334951095,1723669848622,-500.0,0.00013698,2]
[334951097,1723669848631,-500.0,0.00013698,2]
[334951100,1723669848650,-539.36,0.00013698,2]
[334951101,1723669848662,-643.47800314,0.00013698,2]
[334951102,1723669848672,-151.0,0.00013698,2]
[334951103,1723669848684,-151.0,0.00013698,2]
[334951104,1723669848695,-3000.0,0.00013699,2]
[334951105,1723669848705,-151.0,0.00013699,2]
[334951106,1723669848715,-151.0,0.00013699,2]
[334951107,1723669848727,-3274.22802,0.00013699,2]
[334951108,1723669848737,-500.0,0.00013699,2]
[334951109,1723669848748,-500.0,0.00013699,2]
[334951110,1723669848758,-500.0,0.00013699,2]
[334951111,1723669848768,-500.0,0.00013699,2]
[334951112,1723669848779,-500.0,0.00013699,2]
[334951113,1723669848789,-500.0,0.00013699,2]
[334951114,1723669848799,-500.0,0.00013699,2]
[334951115,1723669848810,-500.0,0.00013699,2]
[334951116,1723669848821,-500.0,0.00013699,2]
[334951117,1723669848831,-500.0,0.00013699,2]
[334951118,1723669848844,-500.0,0.00013699,2]
[334951119,1723669848854,-500.0,0.00013699,2]
[334951120,1723669848864,-500.0,0.00013699,2]
[334951121,1723669848875,-500.0,0.00013699,2]
[334951122,1723669848885,-500.0,0.00013699,2]
[334951123,1723669848895,-500.0,0.00013699,2]
[334951124,1723669848905,-500.0,0.00013699,2]
[334951125,1723669848915,-219.94338221,0.00013699,2]
[334951126,1723669848926,-500.0,0.00013699,2]
[334951127,1723669848936,-150.112233,0.000137,2]
[334951128,1723669848945,-150.112233,0.000137,2]
[334951129,1723669848956,-150.112233,0.000138,2]
[334951130,1723669848966,-1413.0,0.00013829,2]
[334951131,1723669848975,-2618.4849706,0.00013861,2]
[334951132,1723669848985,-1719.73,0.00013871,2]
[334951133,1723669848995,-946.18549674,0.00013872,2]
[334951134,1723669849004,-411.227625,0.00013872,2]
[334951135,1723669849013,-411.227625,0.00013872,2]
[334951136,1723669849022,-150.112233,0.000139,2]
[334951137,1723669849032,-151.147819,0.00013962,2]
[334951138,1723669849042,-151.147819,0.00013962,2]
[334951139,1723669849052,-172.45404,0.00013962,2]
[334951140,1723669849062,-18329.3947942,0.00013962,2]
[334951141,1723669849072,-161.0,0.0001397,2]
[334951142,1723669849081,-150.01,0.00013971,2]
[334951143,1723669849091,-2007.54775681,0.00013971,2]
[334951144,1723669849100,-151.0,0.00013971,2]
[334951145,1723669849110,-860.248925,0.00013971,2]
[334951146,1723669849119,-151.0,0.00013971,2]
[334951147,1723669849129,-151.0,0.00013971,2]
[334951148,1723669849138,-152.24925,0.00013971,2]
[334951149,1723669849148,-151.0,0.00013971,2]
[334951150,1723669849158,-151.0,0.00013971,2]
[334951151,1723669849167,-498.065692,0.00013971,2]
[334951152,1723669849176,-498.065692,0.00013971,2]
[334951153,1723669849186,-401.80234,0.00013971,2]
[334951154,1723669849195,-151.0,0.00013971,2]
[334951155,1723669849205,-401.80234,0.00013971,2]
[334951156,1723669849215,-687.007188,0.00013971,2]
[334951158,1723669849227,-687.007188,0.00013971,2]
[334951160,1723669849237,-1719.73,0.00013971,2]
[334951162,1723669849247,-1719.73,0.00013971,2]
[334951176,1723669849384,-1719.73,0.00013971,2]
[334951179,1723669849406,-1719.73,0.00013971,2]
[334951181,1723669849416,-1719.73,0.00013971,2]
[334951183,1723669849431,-1719.73,0.00013971,2]
[334951185,1723669849441,-1719.73,0.00013971,2]
[334951187,1723669849452,-1719.73,0.00013971,2]
[334951189,1723669849466,-330.43091,0.00013971,2]
[334951191,1723669849475,-330.43091,0.00013971,2]
[334951194,1723669849485,-151.0,0.00013971,2]
[334951196,1723669849495,-151.0,0.00013971,2]
[334951198,1723669849505,-385.436671,0.00013971,2]
[334951200,1723669849515,-385.436671,0.00013971,2]
[334951202,1723669849525,-151.0,0.00013972,2]
[334951204,1723669849535,-151.0,0.00013972,2]
[334951206,1723669849545,-151.0,0.00013972,2]
[334951208,1723669849555,-151.0,0.00013972,2]
[334951210,1723669849565,-151.0,0.00013972,2]
[334951212,1723669849574,-151.0,0.00013972,2]
[334951214,1723669849584,-151.0,0.00013972,2]
[334951216,1723669849593,-151.0,0.00013972,2]
[334951218,1723669849603,-151.0,0.00013972,2]
[334951220,1723669849614,-312.692705,0.00013972,2]
[334951222,1723669849623,-312.692705,0.00013972,2]
[334951224,1723669849636,-312.692705,0.00013972,2]
[334951226,1723669849645,-312.692705,0.00013972,2]
[334951228,1723669849655,-312.692705,0.00013972,2]
[334951230,1723669849664,-312.692705,0.00013972,2]
[334951232,1723669849674,-151.0,0.00013972,2]
[334951234,1723669849683,-151.0,0.00013972,2]
[334951236,1723669849693,-151.0,0.00013972,2]
[334951238,1723669849703,-151.0,0.00013972,2]
[334951240,1723669849713,-151.0,0.00013972,2]
[334951242,1723669849723,-151.0,0.00013972,2]
[334951244,1723669849733,-151.0,0.00013972,2]
[334951247,1723669849743,-151.0,0.00013972,2]
[334951249,1723669849753,-151.0,0.00013972,2]
[334951251,1723669849764,-250.433602,0.00013972,2]
[334951253,1723669849774,-674.828748,0.00013972,2]
[334951255,1723669849784,-674.828748,0.00013972,2]
[334951257,1723669849794,-674.828748,0.00013972,2]
[334951259,1723669849805,-674.828748,0.00013972,2]
[334951260,1723669849814,-674.828748,0.00013972,2]
[334951262,1723669849824,-674.828748,0.00013972,2]
[334951264,1723669849836,-674.828748,0.00013972,2]
[334951265,1723669849847,-674.828748,0.00013972,2]
[334951267,1723669849858,-500.0,0.00013972,2]
[334951268,1723669849869,-597.05,0.00013972,2]
[334951270,1723669849879,-522.8,0.00013972,2]
[334951272,1723669849890,-500.0,0.00013972,2]
[334951273,1723669849900,-500.0,0.00013972,2]
[334951275,1723669849911,-500.0,0.00013972,2]
[334951277,1723669849922,-500.0,0.00013972,2]
[334951278,1723669849933,-151.0,0.00013972,2]
[334951280,1723669849943,-500.0,0.00013972,2]
[334951282,1723669849954,-500.0,0.00013972,2]
[334951283,1723669849965,-760.1,0.00013972,2]
[334951285,1723669849975,-500.0,0.00013972,2]
[334951286,1723669849984,-500.0,0.00013972,2]
[334951288,1723669849994,-151.0,0.00013972,2]
[334951290,1723669850003,-500.0,0.00013972,2]
[334951291,1723669850012,-500.0,0.00013972,2]
[334951293,1723669850022,-500.0,0.00013972,2]
[334951294,1723669850031,-500.0,0.00013972,2]
[334951296,1723669850040,-500.0,0.00013972,2]
[334951298,1723669850050,-500.0,0.00013972,2]
[334951299,1723669850060,-151.0,0.00013972,2]
[334951301,1723669850070,-151.0,0.00013972,2]
[334951303,1723669850079,-500.0,0.00013972,2]
[334951304,1723669850088,-151.0,0.00013972,2]
[334951306,1723669850097,-528.5,0.00013972,2]
[334951308,1723669850108,-151.0,0.00013972,2]
[334951309,1723669850117,-606.02,0.00013972,2]
[334951311,1723669850126,-500.0,0.00013972,2]
[334951313,1723669850136,-532.14697826,0.00013972,2]
[334951314,1723669850145,-500.0,0.00013972,2]
[334951316,1723669850154,-500.0,0.00013972,2]
[334951318,1723669850163,-538.72,0.00013972,2]
[334951319,1723669850173,-500.0,0.00013972,2]
[334951321,1723669850182,-500.0,0.00013972,2]
[334951323,1723669850192,-500.0,0.00013972,2]
[334951324,1723669850201,-500.0,0.00013972,2]
[334951326,1723669850212,-500.0,0.00013972,2]
[334951328,1723669850222,-500.0,0.00013972,2]
[334951330,1723669850231,-607.62928695,0.00013972,2]
[334951331,1723669850241,-500.0,0.00013972,2]
[334951333,1723669850250,-500.0,0.00013972,2]
[334951335,1723669850259,-500.0,0.00013972,2]
[334951336,1723669850269,-500.0,0.00013972,2]
[334951338,1723669850279,-500.0,0.00013972,2]
[334951339,1723669850288,-500.0,0.00013972,2]
[334951341,1723669850298,-380.62879097,0.00013972,2]
[334951343,1723669850308,-151.0,0.00013972,2]
[334951344,1723669850318,-151.0,0.00013972,2]
[334951346,1723669850327,-151.0,0.00013972,2]
[334951348,1723669850337,-151.0,0.00013972,2]
[334951350,1723669850347,-343.54896675,0.00013972,2]
[334951351,1723669850359,-500.0,0.00013972,2]
[334951353,1723669850369,-500.0,0.00013972,2]
[334951355,1723669850378,-500.0,0.00013972,2]
[334951357,1723669850392,-500.0,0.00013972,2]
[334951359,1723669850409,-500.0,0.00013972,2]
[334951361,1723669850426,-500.0,0.00013972,2]
[334951363,1723669850439,-151.147819,0.00013972,2]
[334951365,1723669850453,-151.147819,0.00013972,2]
[334951367,1723669850472,-151.147819,0.00013972,2]
[334951369,1723669850487,-151.147819,0.00013972,2]
[334951371,1723669850505,-500.0,0.00013972,2]
[334951373,1723669850519,-151.147819,0.00013972,2]
[334951375,1723669850533,-151.147819,0.00013972,2]
[334951377,1723669850547,-151.147819,0.00013972,2]
[334951379,1723669850564,-151.147819,0.00013972,2]
[334951381,1723669850576,-500.0,0.00013972,2]
[334951384,1723669850588,-500.0,0.00013972,2]
[334951386,1723669850602,-500.0,0.00013972,2]
[334951389,1723669850617,-229.49163913,0.00013972,2]
[334951391,1723669850632,-349.404345,0.00013972,2]
[334951394,1723669850648,-349.404345,0.00013972,2]
[334951396,1723669850663,-349.404345,0.00013972,2]
[334951398,1723669850674,-349.404345,0.00013972,2]
[334951401,1723669850687,-349.404345,0.00013972,2]
[334951402,1723669850701,-349.404345,0.00013972,2]
[334951403,1723669850715,-349.404345,0.00013972,2]
[334951404,1723669850729,-349.404345,0.00013972,2]
[334951405,1723669850744,-349.404345,0.00013972,2]
[334951406,1723669850756,-349.404345,0.00013972,2]
[334951407,1723669850767,-500.0,0.00013972,2]
[334951408,1723669850779,-500.0,0.00013972,2]
[334951409,1723669850791,-500.0,0.00013972,2]
[334951410,1723669850805,-500.0,0.00013972,2]
[334951411,1723669850823,-500.0,0.00013972,2]
[334951412,1723669850835,-576.64,0.00013972,2]
[334951413,1723669850849,-500.0,0.00013972,2]
[334951414,1723669850860,-500.0,0.00013972,2]
[334951415,1723669850873,-590.522685,0.00013972,2]
[334951416,1723669850887,-590.522685,0.00013972,2]
[334951418,1723669850899,-590.522685,0.00013972,2]
[334951419,1723669850913,-590.522685,0.00013972,2]
[334951421,1723669850925,-500.0,0.00013972,2]
[334951423,1723669850938,-500.0,0.00013972,2]
[334951426,1723669850950,-590.522685,0.00013972,2]
[334951428,1723669850962,-590.522685,0.00013972,2]
[334951430,1723669850974,-590.522685,0.00013972,2]
[334951433,1723669850986,-590.522685,0.00013972,2]
[334951435,1723669850999,-500.0,0.00013972,2]
[334951437,1723669851010,-500.0,0.00013972,2]
[334951440,1723669851023,-500.0,0.00013972,2]
[334951442,1723669851035,-500.0,0.00013972,2]
[334951444,1723669851048,-500.0,0.00013972,2]
[334951447,1723669851062,-517.38,0.00013972,2]
[334951449,1723669851075,-500.0,0.00013972,2]
[334951452,1723669851088,-534.81,0.00013972,2]
[334951454,1723669851101,-610.46,0.00013972,2]
[334951457,1723669851113,-500.0,0.00013972,2]
[334951459,1723669851125,-500.0,0.00013972,2]
[334951461,1723669851137,-500.0,0.00013972,2]
[334951464,1723669851149,-500.0,0.00013972,2]
[334951466,1723669851162,-151.0,0.00013972,2]
[334951468,1723669851174,-151.0,0.00013972,2]
[334951471,1723669851187,-151.0,0.00013972,2]
[334951473,1723669851200,-151.0,0.00013972,2]
[334951475,1723669851212,-500.0,0.00013972,2]
[334951478,1723669851226,-500.0,0.00013972,2]
[334951480,1723669851238,-510.6497112,0.00013972,2]
[334951483,1723669851250,-500.0,0.00013972,2]
[334951485,1723669851262,-500.0,0.00013972,2]
[334951487,1723669851274,-621.28,0.00013972,2]
[334951490,1723669851287,-543.44,0.00013972,2]
[334951492,1723669851298,-500.0,0.00013972,2]
[334951494,1723669851322,-500.0,0.00013972,2]
[334951497,1723669851334,-500.0,0.00013972,2]
[334951499,1723669851345,-500.0,0.00013972,2]
[334951501,1723669851358,-500.0,0.00013972,2]
[334951504,1723669851371,-500.0,0.00013972,2]
[334951506,1723669851383,-500.0,0.00013972,2]
[334951508,1723669851395,-598.99,0.00013972,2]
[334951511,1723669851407,-500.0,0.00013972,2]
[334951513,1723669851420,-500.0,0.00013972,2]
[334951516,1723669851432,-500.0,0.00013972,2]
[334951518,1723669851445,-500.0,0.00013972,2]
[334951520,1723669851457,-500.0,0.00013972,2]
[334951522,1723669851473,-500.0,0.00013972,2]
[334951525,1723669851486,-678.58,0.00013972,2]
[334951527,1723669851498,-500.0,0.00013972,2]